fUST/lending_fUST_20250109
["ID","MTS","AMOUNT","RATE_DAILY","PERIOD"]
[348199007,1736381441864,-210.72394819,0.00019452,3]
[348199009,1736381441874,-500.0,0.00019452,3]
[348199011,1736381441883,-500.0,0.00019452,3]
[348199013,1736381441892,-89.7483138,0.00019452,3]
[348199015,1736381441903,-411.7016862,0.00019452,3]
[348199017,1736381441914,-500.0,0.00019452,3]
[348199019,1736381441923,-500.0,0.00019452,3]
[348199021,1736381441932,-500.0,0.00019452,3]
[348199023,1736381441942,-262.26877888,0.00019452,3]
[348199024,1736381441952,-237.73122112,0.00019452,3]
[348199025,1736381441962,-500.0,0.00019452,3]
[348199026,1736381441972,-754.17,0.00019452,3]
[348199027,1736381441981,-500.0,0.00019452,3]
[348199028,1736381441990,-500.0,0.00019452,3]
[348199029,1736381442000,-500.0,0.00019452,3]
[348199030,1736381442009,-500.0,0.00019452,3]
[348199031,1736381442018,-500.0,0.00019452,3]
[348199032,1736381442027,-417.5451687,0.00019452,3]
[348199033,1736381442036,-500.0,0.00019452,3]
[348199034,1736381442049,-500.0,0.00019452,3]
[348199035,1736381442063,-500.0,0.00019452,3]
[348199036,1736381442075,-500.0,0.00019452,3]
[348199037,1736381442089,-500.0,0.00019452,3]
[348199038,1736381442100,-500.0,0.00019452,3]
[348199039,1736381442111,-500.0,0.00019452,3]
[348199040,1736381442123,-500.0,0.00019452,3]
[348199043,1736381442134,-500.0,0.00019452,3]
[348199045,1736381442146,-277.30043689,0.00019452,3]
[348199047,1736381442158,-277.36,0.00019452,2]
[348199050,1736381442171,-500.0,0.00019452,3]
[348199052,1736381442184,-500.0,0.00019452,3]
[348199054,1736381442195,-529.38,0.00019452,3]
[348199056,1736381442207,-500.0,0.00019452,3]
[348199059,1736381442220,-500.0,0.00019452,3]
[348199061,1736381442232,-674.54,0.00019452,3]
[348199064,1736381442245,-500.0,0.00019452,3]
[348199066,1736381442257,-500.0,0.00019452,3]
[348199068,1736381442269,-500.0,0.00019452,3]
[348199070,1736381442280,-500.0,0.00019452,3]
[348199072,1736381442291,-505.97,0.00019452,3]
[348199075,1736381442303,-500.0,0.00019452,3]
[348199077,1736381442315,-500.0,0.00019452,3]
[348199079,1736381442328,-2429.80754755,0.00019452,3]
[348199083,1736381442349,-2569.67245245,0.00019452,3]
[348199085,1736381442359,-287.9178933,0.00019452,3]
[348199103,1736381442515,-1044.4,0.00019178,2]
[348199105,1736381442530,-334.98124228,0.00019178,2]
[348199108,1736381442547,-375.75875772,0.00019178,2]
[348199110,1736381442558,-920.46788478,0.00019178,2]
[348199113,1736381442571,-834.67211522,0.00019178,2]
[348199116,1736381442582,-32.38741671,0.00019452,3]
[348199118,1736381442594,-179.69468999,0.00019452,3]
[348199120,1736381442606,-617.27269716,0.00019452,3]
[348199122,1736381442618,-500.0,0.00019452,3]
[348199126,1736381442631,-500.0,0.00019452,3]
[348199129,1736381442643,-500.0,0.00019452,3]
[348199132,1736381442656,-500.0,0.00019452,3]
[348199135,1736381442668,-500.0,0.00019452,3]
[348199138,1736381442678,-500.0,0.00019452,3]
[348199141,1736381442688,-595.78,0.00019452,3]
[348199145,1736381442699,-500.0,0.00019452,3]
[348199150,1736381442710,-566.06,0.00019452,3]
[348199154,1736381442722,-500.0,0.00019452,3]
[348199157,1736381442733,-500.0,0.00019452,3]
[348199159,1736381442744,-500.0,0.00019452,3]
[348199161,1736381442754,-500.0,0.00019452,3]
[348199163,1736381442765,-500.0,0.00019452,3]
[348199165,1736381442775,-500.0,0.00019452,3]
[348199167,1736381442786,-500.0,0.00019452,3]
[348199170,1736381442797,-666.65,0.00019452,3]
[348199171,1736381442807,-500.0,0.00019452,3]
[348199172,1736381442818,-500.0,0.00019452,3]
[348199173,1736381442829,-500.0,0.00019452,3]
[348199174,1736381442839,-500.0,0.00019452,3]
[348199175,1736381442850,-500.0,0.00019452,3]
[348199176,1736381442861,-500.0,0.00019452,3]
[348199177,1736381442872,-500.0,0.00019452,3]
[348199178,1736381442883,-500.0,0.00019452,3]
[348199179,1736381442894,-500.0,0.00019452,3]
[348199180,1736381442905,-500.0,0.00019452,3]
[348199181,1736381442916,-500.0,0.00019452,3]
[348199182,1736381442927,-443.12181551,0.00019452,3]
[348199183,1736381442939,-500.0,0.00019452,3]
[348199185,1736381442950,-500.0,0.00019452,3]
[348199187,1736381442961,-500.0,0.00019452,3]
[348199189,1736381442971,-500.0,0.00019452,3]
[348199190,1736381442982,-500.0,0.00019452,3]
[348199191,1736381442993,-500.0,0.00019452,3]
[348199192,1736381443004,-500.0,0.00019452,3]
[348199193,1736381443015,-500.0,0.00019452,3]
[348199194,1736381443026,-500.0,0.00019452,3]
[348199195,1736381443036,-500.0,0.00019452,3]
[348199196,1736381443047,-500.0,0.00019452,3]
[348199197,1736381443058,-1755.14,0.00019452,3]
[348199198,1736381443069,-6.28079734,0.00019452,3]
[348199199,1736381443085,-1748.85920266,0.00019452,3]
[348199200,1736381443095,-1000.0,0.00019458,2]
[348199201,1736381443106,-170.22925984,0.00019473,2]
[348199202,1736381443116,-500.0,0.00019473,2]
[348199203,1736381443125,-500.0,0.00019473,2]
[348199204,1736381443135,-1000.0,0.00019473,2]
[348199205,1736381443145,-78.4715619,0.00019724,3]
[348199206,1736381443156,-430.33137599,0.00019724,3]
[348199207,1736381443168,-183.29706211,0.00019724,3]
[348199208,1736381443177,-500.0,0.00019725,3]
[348199209,1736381443188,-692.1,0.00019725,3]
[348199210,1736381443197,-9.58705057,0.00019725,5]
[348199211,1736381443319,-2020.65807544,0.00019725,5]
[348199212,1736381443330,-4245.0,0.00019725,5]
[348199213,1736381443341,-88.7632331,0.00019725,5]
[348199214,1736381443350,-44512.7687207,0.00019726,5]
[348199215,1736381443361,-4754.77714989,0.00019726,5]
[348199216,1736381443372,-457.5,0.00019726,5]
[348199217,1736381443398,-1441.21458112,0.00019726,5]
[348199218,1736381443410,-680.4484889,0.00019726,5]
[348199219,1736381443421,-12593.08507594,0.00019726,5]
[348199313,1736381446141,-6477.09592754,0.00019726,5]
[348199315,1736381446151,-589.19,0.00019726,3]
[348199317,1736381446159,-283.45269427,0.00019726,3]
[348199319,1736381446168,-500.0,0.00019726,3]
[348199321,1736381446177,-500.0,0.00019726,3]
[348199323,1736381446186,-500.0,0.00019726,3]
[348199325,1736381446195,-1267.0,0.00019726,3]
[348199327,1736381446204,-645.07156219,0.00019726,3]
[348199329,1736381446213,-592.43,0.00019726,3]
[348199331,1736381446222,-500.0,0.00019726,3]
[348199333,1736381446231,-500.0,0.00019726,3]
[348199335,1736381446241,-500.0,0.00019726,3]
[348199337,1736381446250,-500.0,0.00019726,3]
[348199339,1736381446259,-154.11,0.00019726,3]
[348199341,1736381446268,-180.3,0.00019726,3]
[348199343,1736381446277,-500.0,0.00019726,3]
[348199345,1736381446286,-500.0,0.00019726,3]
[348199347,1736381446295,-492.81092181,0.00019726,3]
[348199349,1736381446306,-7.18907819,0.00019726,3]
[348199351,1736381446315,-500.0,0.00019726,3]
[348199353,1736381446325,-500.0,0.00019726,3]
[348199355,1736381446334,-500.0,0.00019726,3]
[348199357,1736381446343,-212.45,0.00019726,3]
[348199359,1736381446354,-754.17,0.00019726,3]
[348199361,1736381446363,-500.0,0.00019726,3]
[348199363,1736381446372,-500.0,0.00019726,3]
[348199365,1736381446381,-500.0,0.00019726,3]
[348199367,1736381446389,-500.0,0.00019726,3]
[348199369,1736381446398,-674.54,0.00019726,3]
[348199371,1736381446407,-500.0,0.00019726,3]
[348199373,1736381446416,-500.0,0.00019726,3]
[348199375,1736381446426,-4999.48,0.00019726,3]
[348199377,1736381446434,-500.0,0.00019726,3]
[348199379,1736381446443,-500.0,0.00019726,3]
[348199381,1736381446453,-500.0,0.00019726,3]
[348199383,1736381446462,-500.0,0.00019726,3]
[348199385,1736381446471,-500.0,0.00019726,3]
[348199387,1736381446479,-500.0,0.00019726,3]
[348199389,1736381446489,-500.0,0.00019726,3]
[348199391,1736381446498,-500.0,0.00019726,3]
[348199393,1736381446507,-500.0,0.00019726,3]
[348199395,1736381446517,-151.0,0.00019726,2]
[348199398,1736381446527,-666.65,0.00019726,3]
[348199400,1736381446536,-500.0,0.00019726,3]
[348199401,1736381446545,-500.0,0.00019726,3]
[348199404,1736381446555,-434.76880837,0.00019726,3]
[348200034,1736381514963,163.334826,0.00013973,2]
[348200069,1736382426434,163.071756,0.00013973,2]
[348200070,1736382451134,-481.51015108,0.00018532,2]
[348200075,1736382511615,424.64938293,0.0001,7]
[348200085,1736382548109,-872.57888625,0.00016,2]
[348200086,1736382549159,-56.89106898,0.00016,2]
[348200087,1736382549179,-143.68149342,0.00018,7]
[348200088,1736382551189,-22.23250658,0.00018,7]
[348200089,1736382551210,-701.3162317,0.00018532,2]
[348200101,1736382632288,-18.91820132,0.00018532,2]
[348200103,1736382632299,-192.82506778,0.000188,2]
[348200105,1736382632308,-143.7567309,0.000189,2]
[348200116,1736382632393,-195.48537953,0.000189,2]
[348200118,1736382632402,-302.84859387,0.00019,2]
[348200120,1736382632411,-166.1,0.00019166,2]
[348200122,1736382632420,-300.0,0.00019176,2]
[348200124,1736382632431,-603.15883322,0.00019177,2]
[348200126,1736382632440,-500.0,0.00019177,2]
[348200128,1736382632450,-500.0,0.00019177,2]
[348200130,1736382632459,-500.0,0.00019177,2]
[348200132,1736382632469,-500.0,0.00019177,2]
[348200134,1736382632479,-436.32020166,0.00019177,2]
[348200137,1736382632488,-512.8729942,0.00019177,2]
[348200140,1736382632497,-500.0,0.00019177,2]
[348200142,1736382632507,-500.0,0.00019178,2]
[348200145,1736382632516,-500.0,0.00019178,2]
[348200148,1736382632525,-500.0,0.00019178,2]
[348200151,1736382632534,-364.02045158,0.00019178,2]
[348200154,1736382632544,-396.01729315,0.00019178,2]
[348200157,1736382632554,-500.0,0.00019178,2]
[348200161,1736382632564,-500.0,0.00019178,2]
[348200162,1736382632573,-200.0,0.00019178,2]
[348200164,1736382632582,-500.0,0.00019178,2]
[348200165,1736382632591,-500.0,0.00019178,2]
[348200167,1736382632602,-500.0,0.00019178,2]
[348200168,1736382632611,-500.0,0.00019178,2]
[348200169,1736382632620,-500.0,0.00019178,2]
[348200170,1736382632629,-500.0,0.00019178,2]
[348200171,1736382632638,-500.0,0.00019178,2]
[348200172,1736382632647,-500.0,0.00019178,2]
[348200173,1736382632657,-500.0,0.00019178,2]
[348200174,1736382632666,-500.0,0.00019178,2]
[348200175,1736382632675,-433.23094804,0.00019178,2]
[348200176,1736382632685,-500.0,0.00019178,2]
[348200177,1736382632694,-500.0,0.00019178,2]
[348200178,1736382632703,-500.0,0.00019178,2]
[348200179,1736382632712,-500.0,0.00019178,2]
[348200180,1736382632722,-500.0,0.00019178,2]
[348200181,1736382632731,-500.0,0.00019178,2]
[348200182,1736382632740,-500.0,0.00019178,2]
[348200183,1736382632750,-500.0,0.00019178,2]
[348200184,1736382632759,-500.0,0.00019178,2]
[348200185,1736382632769,-500.0,0.00019178,2]
[348200186,1736382632778,-500.0,0.00019178,2]
[348200187,1736382632788,-500.0,0.00019178,2]
[348200188,1736382632797,-500.0,0.00019178,2]
[348200189,1736382632806,-500.0,0.00019178,2]
[348200190,1736382632816,-500.0,0.00019178,2]
[348200191,1736382632825,-441.06,0.00019178,2]
[348200192,1736382632834,-339.85,0.00019178,2]
[348200193,1736382632844,-500.0,0.00019178,2]
[348200194,1736382632854,-500.0,0.00019178,2]
[348200195,1736382632863,-500.0,0.00019178,2]
[348200196,1736382632872,-500.0,0.00019178,2]
[348200197,1736382632881,-500.0,0.00019178,2]
[348200198,1736382632890,-500.0,0.00019178,2]
[348200199,1736382632899,-500.0,0.00019178,2]
[348200200,1736382632909,-500.0,0.00019178,2]
[348200201,1736382632918,-500.0,0.00019178,2]
[348200202,1736382632927,-500.0,0.00019178,2]
[348200203,1736382632937,-500.0,0.00019178,2]
[348200204,1736382632946,-500.0,0.00019178,5]
[348200205,1736382632955,-500.0,0.00019178,2]
[348200206,1736382632964,-500.0,0.00019178,2]
[348200207,1736382632973,-630.49,0.00019178,2]
[348200208,1736382632983,-500.0,0.00019178,2]
[348200209,1736382632992,-500.0,0.00019178,2]
[348200210,1736382633002,-500.0,0.00019178,2]
[348200211,1736382633011,-500.0,0.00019178,2]
[348200212,1736382633024,-500.0,0.00019178,2]
[348200213,1736382633034,-506.47258191,0.00019178,2]
[348200214,1736382633043,-500.0,0.00019178,2]
[348200215,1736382633052,-500.0,0.00019178,2]
[348200216,1736382633063,-500.0,0.00019178,2]
[348200217,1736382633072,-500.0,0.00019178,2]
[348200218,1736382633081,-500.0,0.00019178,2]
[348200219,1736382633091,-500.0,0.00019178,2]
[348200220,1736382633223,-500.0,0.00019178,2]
[348200221,1736382633233,-500.0,0.00019178,2]
[348200222,1736382633242,-1745.7,0.00019178,2]
[348200223,1736382633251,-500.0,0.00019178,2]
[348200224,1736382633261,-1442.67,0.00019178,2]
[348200225,1736382633270,-500.0,0.00019178,2]
[348200226,1736382633279,-500.0,0.00019178,2]
[348200227,1736382633289,-500.0,0.00019178,2]
[348200228,1736382633299,-500.0,0.00019178,2]
[348200229,1736382633308,-500.0,0.00019178,2]
[348200230,1736382633318,-500.0,0.00019178,2]
[348200231,1736382633327,-596.19,0.00019178,2]
[348200232,1736382633337,-500.0,0.00019178,2]
[348200233,1736382633348,-500.0,0.00019178,2]
[348200234,1736382633358,-901.52,0.00019178,2]
[348200235,1736382633367,-500.0,0.00019178,2]
[348200236,1736382633376,-500.0,0.00019178,2]
[348200237,1736382633386,-500.0,0.00019178,2]
[348200238,1736382633395,-500.0,0.00019178,2]
[348200239,1736382633404,-500.0,0.00019178,2]
[348200240,1736382633414,-500.0,0.00019178,2]
[348200241,1736382633423,-500.0,0.00019178,2]
[348200242,1736382633433,-5728.83,0.00019178,2]
[348200243,1736382633443,-701.56,0.00019178,2]
[348200244,1736382633452,-500.0,0.00019178,2]
[348200245,1736382633462,-500.0,0.00019178,2]
[348200246,1736382633471,-500.0,0.00019178,2]
[348200247,1736382633481,-500.0,0.00019178,2]
[348200248,1736382633491,-500.0,0.00019178,2]
[348200249,1736382633500,-500.0,0.00019178,2]
[348200250,1736382633509,-500.0,0.00019178,2]
[348200251,1736382633519,-547.17,0.00019178,2]
[348200252,1736382633528,-519.87,0.00019178,2]
[348200253,1736382633538,-500.0,0.00019178,2]
[348200254,1736382633548,-316.64899415,0.00019178,2]
[348200255,1736382633557,-500.0,0.00019178,2]
[348200256,1736382633566,-500.0,0.00019178,2]
[348200257,1736382633576,-500.0,0.00019178,2]
[348200258,1736382633586,-500.0,0.00019178,2]
[348200259,1736382633595,-596.03,0.00019178,2]
[348200260,1736382633606,-500.0,0.00019178,2]
[348200261,1736382633616,-500.0,0.00019178,2]
[348200262,1736382633625,-500.0,0.00019178,2]
[348200263,1736382633634,-500.0,0.00019178,2]
[348200264,1736382633644,-500.0,0.00019178,2]
[348200265,1736382633663,-500.0,0.00019178,2]
[348200266,1736382633673,-500.0,0.00019178,2]
[348200267,1736382633683,-500.0,0.00019178,2]
[348200268,1736382633693,-500.0,0.00019178,2]
[348200269,1736382633703,-500.0,0.00019178,2]
[348200270,1736382633713,-500.0,0.00019178,2]
[348200271,1736382633723,-500.0,0.00019178,2]
[348200272,1736382633733,-500.0,0.00019178,2]
[348200273,1736382633742,-500.0,0.00019178,2]
[348200274,1736382633753,-500.0,0.00019178,2]
[348200275,1736382633763,-500.0,0.00019178,2]
[348200276,1736382633773,-500.0,0.00019178,2]
[348200277,1736382633782,-153.48,0.00019178,2]
[348200278,1736382633793,-167.131108,0.00019178,2]
[348200279,1736382633803,-500.0,0.00019451,3]
[348200280,1736382633812,-500.0,0.00019451,3]
[348200281,1736382633822,-500.0,0.00019451,3]
[348200282,1736382633832,-500.0,0.00019451,3]
[348200283,1736382633842,-500.0,0.00019451,3]
[348200284,1736382633853,-500.0,0.00019451,3]
[348200285,1736382633863,-500.0,0.00019452,3]
[348200286,1736382633872,-524.85,0.00019452,3]
[348200287,1736382633881,-500.0,0.00019452,3]
[348200288,1736382633891,-500.0,0.00019452,3]
[348200289,1736382633901,-330.9,0.00019452,3]
[348200290,1736382633910,-500.0,0.00019452,3]
[348200291,1736382633920,-500.0,0.00019452,3]
[348200292,1736382633929,-500.0,0.00019452,3]
[348200293,1736382633939,-1745.7,0.00019452,3]
[348200294,1736382633949,-1442.67,0.00019452,3]
[348200295,1736382633958,-244.97,0.00019452,2]
[348200296,1736382633968,-434.73106085,0.00019452,3]
[348200297,1736382633978,-307.77,0.00019452,3]
[348200298,1736382633988,-500.0,0.00019452,3]
[348200299,1736382633997,-901.52,0.00019452,3]
[348200300,1736382634007,-500.0,0.00019452,3]
[348200301,1736382634017,-500.0,0.00019452,3]
[348200302,1736382634028,-5728.83,0.00019452,3]
[348200303,1736382634039,-701.56,0.00019452,3]
[348200304,1736382634048,-500.0,0.00019452,3]
[348200305,1736382634058,-500.0,0.00019452,3]
[348200306,1736382634069,-500.0,0.00019452,3]
[348200307,1736382634079,-500.0,0.00019452,3]
[348200308,1736382634089,-500.0,0.00019452,3]
[348200309,1736382634100,-500.0,0.00019452,3]
[348200310,1736382634111,-596.03,0.00019452,3]
[348200311,1736382634121,-500.0,0.00019452,3]
[348200312,1736382634131,-500.0,0.00019452,3]
[348200313,1736382634140,-500.0,0.00019452,3]
[348200314,1736382634150,-500.0,0.00019452,3]
[348200315,1736382634160,-500.0,0.00019452,3]
[348200316,1736382634170,-500.0,0.00019452,3]
[348200317,1736382634179,-500.0,0.00019452,3]
[348200318,1736382634189,-500.0,0.00019452,3]
[348200319,1736382634199,-500.0,0.00019452,3]
[348200320,1736382634209,-500.0,0.00019452,3]
[348200321,1736382634218,-500.0,0.00019452,3]
[348200322,1736382634228,-500.0,0.00019724,3]
[348200323,1736382634237,-500.0,0.00019725,3]
[348200324,1736382634247,-500.0,0.00019725,3]
[348200325,1736382634256,-500.0,0.00019725,3]
[348200326,1736382634266,-500.0,0.00019725,3]
[348200327,1736382634276,-500.0,0.00019725,3]
[348200328,1736382634285,-500.0,0.00019725,3]
[348200329,1736382634295,-151.0,0.00019726,2]
[348200330,1736382634304,-500.0,0.00019726,3]
[348200331,1736382634315,-500.0,0.00019726,3]
[348200332,1736382634324,-500.0,0.00019726,3]
[348200333,1736382634333,-500.0,0.00019726,3]
[348200334,1736382634343,-639.1,0.00019726,3]
[348200335,1736382634354,-1745.7,0.00019726,3]
[348200336,1736382634363,-1442.67,0.00019726,3]
[348200337,1736382634373,-901.52,0.00019726,3]
[348200338,1736382634382,-291.34,0.00019726,3]
[348200339,1736382634391,-5728.83,0.00019726,3]
[348200340,1736382634401,-701.56,0.00019726,3]
[348200341,1736382634410,-500.0,0.00019726,3]
[348200342,1736382634420,-500.0,0.00019726,3]
[348200343,1736382634429,-500.0,0.00019726,3]
[348200344,1736382634439,-451.78,0.00019726,3]
[348200345,1736382634448,-500.0,0.00019726,3]
[348200346,1736382634457,-500.0,0.00019726,3]
[348200347,1736382634467,-596.03,0.00019726,3]
[348200348,1736382634476,-500.0,0.00019726,3]
[348200349,1736382634486,-500.0,0.00019726,3]
[348200350,1736382634495,-500.0,0.00019726,3]
[348200351,1736382634504,-500.0,0.00019726,3]
[348200352,1736382634513,-500.0,0.00019726,3]
[348200353,1736382634522,-500.0,0.00019726,3]
[348200354,1736382634531,-368.03,0.00019726,3]
[348200355,1736382634541,-500.0,0.00019726,3]
[348200356,1736382634550,-500.0,0.00019726,3]
[348200357,1736382634559,-500.0,0.00019726,3]
[348200358,1736382634568,-1000.0,0.00019774,2]
[348200359,1736382634577,-1060.58451019,0.0001978,2]
[348200360,1736382634586,-500.43542853,0.00019836,2]
[348200361,1736382634595,-500.90628145,0.00019836,2]
[348200362,1736382634606,-519.26490262,0.000199,2]
[348200363,1736382634615,-500.0,0.00019999,3]
[348200364,1736382634624,-500.0,0.00019999,3]
[348200365,1736382634633,-500.0,0.00019999,3]
[348200366,1736382634642,-3653.0,0.0002,3]
[348200367,1736382634652,-1826.0,0.0002,3]
[348200368,1736382634661,-1826.0,0.0002,3]
[348200369,1736382634670,-1826.0,0.0002,3]
[348200370,1736382634679,-1826.0,0.0002,3]
[348200371,1736382634688,-1333.0,0.0002,2]
[348200372,1736382634698,-555.62,0.0002,3]
[348200373,1736382634707,-583.69746154,0.0002,3]
[348200374,1736382634716,-500.0,0.0002,3]
[348200375,1736382634725,-1745.7,0.0002,3]
[348200376,1736382634735,-1442.67,0.0002,3]
[348200377,1736382634744,-901.52,0.0002,3]
[348200378,1736382634754,-192.36,0.0002,2]
[348200379,1736382634763,-1025.76063286,0.0002,3]
[348200407,1736382638139,-490.2451444,0.0002,3]
[348200408,1736382638207,-85.19438313,0.0002,3]
[348200409,1736382638219,-4127.62983961,0.0002,3]
[348200410,1736382638229,-701.56,0.0002,3]
[348200411,1736382638238,-500.0,0.0002,3]
[348200412,1736382638248,-345.09,0.0002,3]
[348200413,1736382638258,-553.15524585,0.0002,3]
[348200414,1736382638267,-500.0,0.0002,3]
[348200415,1736382638276,-596.03,0.0002,3]
[348200416,1736382638286,-500.0,0.0002,3]
[348200417,1736382638295,-500.0,0.0002,3]
[348200418,1736382638304,-245.69,0.0002,3]
[348200419,1736382638314,-467.11,0.0002,3]
[348200420,1736382638323,-500.0,0.0002,3]
[348200421,1736382638332,-500.0,0.0002,3]
[348200422,1736382638344,-394.2865971,0.0002,3]
[348200423,1736382638357,-105.7134029,0.0002,3]
[348200424,1736382638367,-500.0,0.0002,3]
[348200425,1736382638376,-500.0,0.0002,3]
[348200426,1736382638386,-519.26490233,0.00020038,2]
[348200427,1736382638395,-519.26490233,0.00020176,2]
[348200428,1736382638405,-534.08336692,0.00020271,3]
[348200429,1736382638414,-393.39994111,0.00020272,2]
[348200430,1736382638424,-151.0,0.00020273,2]
[348200431,1736382638433,-500.0,0.00020273,3]
[348200432,1736382638443,-1155.12575392,0.00020273,3]
[348200433,1736382638455,-590.57424608,0.00020273,3]
[348200434,1736382638465,-565.76147392,0.00020273,3]
[348200435,1736382638475,-876.90852608,0.00020273,3]
[348200436,1736382638485,-614.4282176,0.00020273,3]
[348200456,1736382643129,-287.0917824,0.00020273,3]
[348200457,1736382643139,-88.3902156,0.00020273,3]
[348200459,1736382643151,-249.993024,0.00020273,3]
[348200460,1736382643164,-5390.4467604,0.00020273,3]
[348200461,1736382643173,-701.56,0.00020273,3]
[348200462,1736382643183,-500.0,0.00020273,3]
[348200463,1736382643193,-500.0,0.00020273,3]
[348200464,1736382643203,-596.03,0.00020273,3]
[348200465,1736382643212,-500.0,0.00020273,3]
[348200466,1736382643222,-500.0,0.00020273,3]
[348200467,1736382643231,-284.71119163,0.00020273,3]
[348200469,1736382643241,-500.0,0.00020273,3]
[348200471,1736382643251,-500.0,0.00020273,3]
[348200473,1736382643260,-500.0,0.00020273,3]
[348200474,1736382643270,-500.0,0.00020273,3]
[348200475,1736382643280,-519.26490233,0.00020314,2]
[348200476,1736382643289,-519.26490233,0.00020452,2]
[348200477,1736382643299,-314.451547,0.00020521,2]
[348200478,1736382643308,-151.0,0.00020547,2]
[348200479,1736382643318,-500.0,0.00020547,3]
[348200480,1736382643328,-1007.34056257,0.00020547,2]
[348200481,1736382643337,-1745.7,0.00020547,3]
[348200482,1736382643347,-1442.67,0.00020547,3]
[348200483,1736382643356,-901.52,0.00020547,3]
[348200484,1736382643365,-5728.83,0.00020547,3]
[348200485,1736382643374,-701.56,0.00020547,3]
[348200486,1736382643382,-500.0,0.00020547,3]
[348200487,1736382643393,-500.0,0.00020547,3]
[348200488,1736382643402,-65.65013374,0.00020547,3]
[348200489,1736382643413,-530.37986626,0.00020547,3]
[348200490,1736382643423,-74.49690916,0.00020547,3]
[348200491,1736382643434,-425.50309084,0.00020547,3]
[348200492,1736382643443,-500.0,0.00020547,3]
[348200493,1736382643452,-500.0,0.00020547,3]
[348200494,1736382643462,-500.0,0.00020547,3]
[348200495,1736382643472,-500.0,0.00020547,3]
[348200496,1736382643482,-500.0,0.00020547,3]
[348200497,1736382643491,-519.26490233,0.0002059,2]
[348200498,1736382643500,-519.26490233,0.00020728,2]
[348200499,1736382643510,-1500.0,0.000208,2]
[348200500,1736382643519,-1500.0,0.000208,2]
[348200501,1736382643528,-1500.0,0.000208,2]
[348200502,1736382643538,-151.0,0.0002082,2]
[348200503,1736382643549,-500.0,0.00020821,3]
[348200504,1736382643558,-1745.7,0.00020821,3]
[348200505,1736382643567,-1442.67,0.00020821,3]
[348200506,1736382643577,-901.52,0.00020821,3]
[348200507,1736382643586,-2999.94599154,0.00020821,3]
[348200508,1736382643598,-728.23,0.00020821,3]
[348200509,1736382643610,-2000.65400846,0.00020821,3]
[348200510,1736382643620,-701.56,0.00020821,3]
[348200511,1736382643630,-500.0,0.00020821,3]
[348200512,1736382643640,-151.91894854,0.00020821,3]
[348200513,1736382643651,-348.08105146,0.00020821,3]
[348200514,1736382643661,-366.69975667,0.00020821,3]
[348200515,1736382643673,-229.33024333,0.00020821,3]
[348200516,1736382643683,-500.0,0.00020821,3]
[348200517,1736382643692,-500.0,0.00020821,3]
[348200519,1736382643701,-467.37240562,0.00020821,3]
[348200533,1736382646196,-32.62759438,0.00020821,3]
[348200534,1736382646206,-500.0,0.00020821,3]